[Event "2nd Turkish League 2017"]
[Site "Konya"]
[Date "2017.07.20"]
[Round "5"]
[White "Rzayev, Bahruz"]
[Black "Aytekin, Murat Eren"]
[Result "1-0"]
[ECO "A37"]
[WhiteElo "2386"]
[BlackElo "2201"]
[Annotator "NA RC"]
[PlyCount "81"]
[EventType "team-tourn"]
[EventCountry "TUR"]
[SourceTitle "playchess.com"]
[Source "ChessBase"]
[SourceQuality "1"]
[TimeControl "5400+30"]

1. Nf3 {[%emt 0:00:30]} c5 {[%emt 0:01:00]} 2. g3 {[%emt 0:00:00]} g6 {[%emt 0:02:30]} 3. Bg2 {[%emt 0:00:00]} Bg7 {[%emt 0:00:30]} 4. O-O {[%emt 0:00:00]} Nc6 {[%emt 0:00:30]} 5. c4 {[%emt 0:00:00]} e5 {[%emt 0:00:30]} 6. Nc3 {[%emt 0:00:30]} Nge7 {[%emt 0:00:30]} 7. Ne1 {[%emt 0:00:30]} O-O {[%emt 0:00:30]} 8. Nc2 {[%emt 0:00:30]} d6 {[%emt 0:00:30]} 9. Ne3 {[%emt 0:00:00]} Be6 {[%emt 0:01:30] A37: Symmetrical English vs ...g6: 4 Bg2 Bg7 5 Nf3} 10. Ned5 {[%emt 0:00:00]} Rb8 {[%emt 0:00:30]} 11. a3 {[%emt 0:00:00]} (11. d3 a6 12. Bg5 f6 13. Bd2 b5 14. Rb1 b4 15. Na4 Bf7 16. a3 a5 17. axb4 axb4 18. b3 Nxd5 19. cxd5 {0-1 (41) Caruana,F (2829)-Nakamura,H (2775) London 2014}) 11... a6 {[%emt 0:12:30]} 12. b4 {[%emt 0:02:00]} b5 {[%emt 0:03:30]} 13. cxb5 {[%emt 0:00:30]} axb5 {[%emt 0:00:30]} 14. Rb1 {[%emt 0:00:00]} Nxd5 {[%emt 0:02:30]} 15. Nxd5 {[%emt 0:00:00]} cxb4 {[%emt 0:21:30]} 16. Nxb4 {[%emt 0:02:30]} Nxb4 {[%emt 0:01:30]} 17. Rxb4 {[%emt 0:00:00]} Qa5 $146 {[%emt 0:01:30]} 18. Bb2 {[%emt 0:04:00]} Rfc8 {[%emt 0:02:30]} 19. Qa1 {[%emt 0:02:30]} Rc2 {[%emt 0:06:30]} 20. Rd1 $11 {[%emt 0:03:30]} Bh6 {[%emt 0:07:30]} 21. e3 {[%emt 0:04:30]} f5 {[%emt 0:03:30]} 22. Bf1 {[%emt 0:01:30]} f4 {[%emt 0:17:34]} 23. Bd3 {[%emt 0:04:30]} Rc7 {[%emt 0:02:42]} 24. exf4 {[%emt 0:00:30]} exf4 {[%emt 0:00:19]} 25. Bc3 {[%emt 0:00:30]} Qa7 {[%emt 0:01:53]} 26. Bxb5 {[%emt 0:04:30]} fxg3 {[%emt 0:02:50]} 27. hxg3 {[%emt 0:00:30]} Rf8 {[%emt 0:00:30]} 28. Bd4 {[%emt 0:00:30]} Qa8 {[%emt 0:00:30]} 29. Bf1 {[%emt 0:00:30]} Bd5 {[%emt 0:00:43]} 30. Qb2 {[%emt 0:05:30]} Qc8 {[%emt 0:01:47]} 31. Be3 {[%emt 0:02:30]} Bg7 {[%emt 0:01:41]} 32. Qb1 {[%emt 0:00:00]} Bf3 {[%emt 0:01:05]} 33. Re1 {[%emt 0:00:00]} d5 {[%emt 0:00:33]} 34. Bg2 {[%emt 0:01:30]} Bxg2 {[%emt 0:00:53]} 35. Kxg2 {[%emt 0:00:30]} Qa8 {[%emt 0:00:17]} 36. Qb3 {[%emt 0:00:30]} Rcf7 {[%emt 0:00:39]} 37. Bc5 {[%emt 0:01:30]} Rc8 {[%emt 0:00:44]} 38. Re7 {[%emt 0:01:30]} Rxe7 {[%emt 0:01:05]} 39. Bxe7 {[%emt 0:00:00]} Kh8 {[%emt 0:00:13]} 40. Rb7 {[%emt 0:00:00]} d4 {[%emt 0:00:42]} 41. Bd6 {[%emt 0:00:30]} 1-0

[Event "2nd Turkish League 2017"]
[Site "Konya"]
[Date "2017.07.20"]
[Round "5"]
[White "Lomsadze, Davit"]
[Black "Morchiashvili, Bachana"]
[Result "1/2-1/2"]
[ECO "A30"]
[WhiteElo "2335"]
[BlackElo "2395"]
[Annotator "NA"]
[PlyCount "52"]
[EventType "team-tourn"]
[EventCountry "TUR"]
[SourceTitle "playchess.com"]
[Source "ChessBase"]
[SourceQuality "1"]
[TimeControl "5400+30"]

1. Nf3 {[%emt 0:00:30]} Nf6 {[%emt 0:01:00]} 2. g3 {[%emt 0:00:30]} g6 {[%emt 0:00:30]} 3. Bg2 {[%emt 0:00:30]} Bg7 {[%emt 0:00:00]} 4. O-O {[%emt 0:00:30]} O-O {[%emt 0:00:00]} 5. b3 {[%emt 0:03:30]} b6 {[%emt 0:02:30]} 6. Bb2 {[%emt 0:05:30]} Bb7 {[%emt 0:00:30]} 7. c4 {[%emt 0:01:30]} c5 {[%emt 0:03:30]} 8. d4 {[%emt 0:12:30]} cxd4 {[%emt 0:06:30]} 9. Nxd4 {[%emt 0:01:30]} Bxg2 {[%emt 0:01:30]} 10. Kxg2 {[%emt 0:00:30]} Nc6 {[%emt 0:08:30]} 11. Nxc6 {[%emt 0:04:30]} dxc6 {[%emt 0:00:30]} 12. Nd2 {[%emt 0:00:30]} Qd7 {[%emt 0:05:30]} 13. Qc2 {[%emt 0:04:30]} Rfd8 {[%emt 0:02:30]} 14. Rad1 {[%emt 0:02:30]} c5 $11 {[%emt 0:05:30]} 15. Bxf6 {[%emt 0:02:30]} Bxf6 {[%emt 0:00:30]} 16. Nf3 {[%emt 0:00:30]} Qe6 {[%emt 0:01:30]} 17. Rxd8+ {[%emt 0:01:30]} Rxd8 {[%emt 0:00:30]} 18. Rd1 {[%emt 0:00:30]} Rxd1 {[%emt 0:00:30]} 19. Qxd1 {[%emt 0:00:30]} Kg7 {[%emt 0:00:00]} 20. Qd3 {[%emt 0:00:30]} Ba1 {[%emt 0:01:00]} 21. Qd1 {[%emt 0:00:30]} Bf6 {[%emt 0:00:00]} 22. Qd3 {[%emt 0:00:30]} Ba1 {[%emt 0:00:00]} 23. Qd1 {[%emt 0:00:30]} Bf6 {[%emt 0:00:00]} 24. Qd3 {[%emt 0:00:00]} Ba1 {[%emt 0:01:00]} 25. Qd1 {[%emt 0:00:00]} Bf6 {[%emt 0:00:30]} 26. Qd3 {[%emt 0:00:30]} Ba1 {[%emt 0:00:30]} 1/2-1/2

[Event "2nd Turkish League 2017"]
[Site "Konya"]
[Date "2017.07.20"]
[Round "5"]
[White "Ozturk, Emir"]
[Black "Akca, Gani Eren"]
[Result "1/2-1/2"]
[ECO "E62"]
[WhiteElo "2202"]
[BlackElo "2158"]
[Annotator "ChessBase"]
[PlyCount "149"]
[EventType "team-tourn"]
[EventCountry "TUR"]
[SourceTitle "playchess.com"]
[Source "ChessBase"]
[SourceQuality "1"]
[TimeControl "5400+30"]

1. d4 {[%emt 0:00:30]} Nf6 {[%emt 0:01:00]} 2. c4 {[%emt 0:00:00]} g6 {[%emt 0:00:30]} 3. Nf3 {[%emt 0:00:00]} Bg7 {[%emt 0:00:00]} 4. g3 {[%emt 0:00:30]} O-O {[%emt 0:00:00]} 5. Bg2 {[%emt 0:00:30]} d6 {[%emt 0:00:00]} 6. Nc3 {[%emt 0:00:00]} Nc6 {[%emt 0:00:00]} 7. O-O {[%emt 0:00:00]} e5 {[%emt 0:00:30]} 8. d5 {[%emt 0:01:30]} Ne7 {[%emt 0:00:30]} 9. e4 {[%emt 0:00:00]} Nd7 {[%emt 0:00:00]} 10. Ne1 {[%emt 0:01:00]} f5 {[%emt 0:00:00]} 11. Nd3 {[%emt 0:00:30]} Nf6 {[%emt 0:00:30]} 12. Bg5 {[%emt 0:00:30]} Nxe4 {[%emt 0:00:30]} 13. Nxe4 {[%emt 0:00:30]} fxe4 {[%emt 0:00:30]} 14. Bxe4 {[%emt 0:00:30]} Qe8 {[%emt 0:00:00]} 15. g4 {[%emt 0:17:30]} Kh8 {[%emt 0:03:00]} 16. h3 {[%emt 0:01:30]} Ng8 {[%emt 0:02:30]} 17. Qd2 {[%emt 0:01:30]} h6 {[%emt 0:18:30]} 18. Be3 {[%emt 0:06:30]} Nf6 {[%emt 0:00:30]} 19. Bg2 {[%emt 0:06:30]} e4 {[%emt 0:01:30]} 20. Nf4 {[%emt 0:04:30]} g5 {[%emt 0:14:30]} 21. Ne2 {[%emt 0:01:30]} Nd7 {[%emt 0:06:30]} 22. Qc2 {[%emt 0:04:30]} h5 {[%emt 0:09:30]} 23. gxh5 {[%emt 0:08:30]} Ne5 {[%emt 0:05:30]} 24. Ng3 {[%emt 0:04:30]} Nf3+ {[%emt 0:01:30]} 25. Kh1 {[%emt 0:00:30]} g4 {[%emt 0:00:30]} 26. h6 {[%emt 0:09:30]} Be5 {[%emt 0:01:30]} 27. Rae1 {[%emt 0:18:29]} Nxe1 {[%emt 0:09:30]} 28. Rxe1 {[%emt 0:00:30]} gxh3 {[%emt 0:00:30]} 29. Bxe4 {[%emt 0:00:30]} Bg4 {[%emt 0:00:30]} 30. Bg5 {[%emt 0:03:23]} Qf7 {[%emt 0:11:56]} 31. f4 {[%emt 0:00:46]} Bxf4 {[%emt 0:01:25]} 32. Rf1 {[%emt 0:00:19]} Bxg3 {[%emt 0:03:21]} 33. Rxf7 {[%emt 0:02:02]} Rxf7 {[%emt 0:00:07]} 34. Qd3 {[%emt 0:00:25]} Raf8 {[%emt 0:01:51]} 35. Qxg3 {[%emt 0:01:40]} Rf1+ {[%emt 0:00:30]} 36. Kh2 {[%emt 0:00:30]} R8f2+ {[%emt 0:00:30]} 37. Qxf2 {[%emt 0:00:00]} Rxf2+ {[%emt 0:00:00]} 38. Kg3 {[%emt 0:00:00]} Rf1 {[%emt 0:04:15]} 39. Kxg4 {[%emt 0:06:14]} h2 {[%emt 0:00:18]} 40. Bd8 {[%emt 0:00:42]} c6 {[%emt 0:04:49]} 41. dxc6 {[%emt 0:01:22]} bxc6 {[%emt 0:00:06]} 42. Bxc6 {[%emt 0:00:08]} h1=Q {[%emt 0:00:56]} 43. Bxh1 {[%emt 0:00:30]} Rxh1 {[%emt 0:00:00]} 44. Bg5 {[%emt 0:00:16]} Rh2 {[%emt 0:01:33]} 45. Kf5 {[%emt 0:00:35]} Kh7 {[%emt 0:00:07]} 46. Bf6 {[%emt 0:00:26]} Kxh6 {[%emt 0:00:38]} 47. Ke6 {[%emt 0:00:10]} Kg6 {[%emt 0:00:24]} 48. Bd4 {[%emt 0:00:49]} Rc2 {[%emt 0:01:31]} 49. Bc3 {[%emt 0:00:20]} Re2+ {[%emt 0:00:16]} 50. Kxd6 {[%emt 0:00:30]} Kf7 {[%emt 0:00:00]} 51. a4 {[%emt 0:00:36]} Re4 {[%emt 0:00:37]} 52. Kd5 {[%emt 0:00:30]} Rg4 {[%emt 0:00:22]} 53. b4 {[%emt 0:00:53]} a6 {[%emt 0:00:33]} 54. Bd4 {[%emt 0:00:33]} Ke7 {[%emt 0:00:38]} 55. c5 {[%emt 0:00:12]} Kd7 {[%emt 0:00:31]} 56. b5 {[%emt 0:00:52]} axb5 {[%emt 0:00:41]} 57. axb5 {[%emt 0:00:08]} Rg2 {[%emt 0:00:17]} 58. b6 {[%emt 0:00:20]} Rc2 {[%emt 0:00:38]} 59. Be5 {[%emt 0:01:04]} Rd2+ {[%emt 0:00:07]} 60. Bd4 {[%emt 0:00:29]} Rc2 {[%emt 0:00:30]} 61. Be3 {[%emt 0:00:00]} Rc3 {[%emt 0:00:24]} 62. Bf4 {[%emt 0:00:15]} Rd3+ {[%emt 0:00:07]} 63. Ke4 {[%emt 0:01:37]} Rb3 {[%emt 0:00:17]} 64. Kd5 {[%emt 0:00:19]} Rd3+ {[%emt 0:00:16]} 65. Kc4 {[%emt 0:00:07]} Rf3 {[%emt 0:00:11]} 66. Bd6 {[%emt 0:00:21]} Kc6 {[%emt 0:00:08]} 67. Kb4 {[%emt 0:00:29]} Rf2 {[%emt 0:00:15]} 68. Kc4 {[%emt 0:00:22]} Ra2 {[%emt 0:00:19]} 69. Kd4 {[%emt 0:00:02]} Rd2+ {[%emt 0:00:14]} 70. Ke5 {[%emt 0:00:05]} Re2+ {[%emt 0:00:37]} 71. Kf6 {[%emt 0:00:02]} Re1 {[%emt 0:00:20]} 72. Kf7 {[%emt 0:00:03]} Re2 {[%emt 0:00:43]} 73. Kf8 {[%emt 0:00:02]} Re1 {[%emt 0:00:58]} 74. Kf7 {[%emt 0:00:07]} Re2 {[%emt 0:00:45]} 75. Kf8 {[%emt 0:00:07]} 1/2-1/2

[Event "2nd Turkish League 2017"]
[Site "Konya"]
[Date "2017.07.20"]
[Round "5"]
[White "Yagiz, Yasin Emrah"]
[Black "Buker, Muhittin"]
[Result "1-0"]
[ECO "A39"]
[WhiteElo "2172"]
[BlackElo "2006"]
[Annotator "ChessBase"]
[PlyCount "93"]
[EventType "team-tourn"]
[EventCountry "TUR"]
[SourceTitle "playchess.com"]
[Source "ChessBase"]
[SourceQuality "1"]
[TimeControl "5400+30"]

1. c4 {[%emt 0:00:30]} c5 {[%emt 0:01:00]} 2. Nc3 {[%emt 0:01:30]} Nc6 {[%emt 0:00:30]} 3. g3 {[%emt 0:00:30]} Nf6 {[%emt 0:00:30]} 4. Bg2 {[%emt 0:00:30]} g6 {[%emt 0:00:00]} 5. Nf3 {[%emt 0:03:30]} Bg7 {[%emt 0:00:00]} 6. O-O {[%emt 0:00:30]} O-O {[%emt 0:00:00]} 7. d4 {[%emt 0:01:30]} cxd4 {[%emt 0:00:00]} 8. Nxd4 {[%emt 0:00:00]} Nxd4 {[%emt 0:00:30]} 9. Qxd4 {[%emt 0:00:00]} d6 {[%emt 0:00:30]} 10. Qd2 {[%emt 0:04:30]} Qc7 {[%emt 0:01:30]} 11. b3 {[%emt 0:01:30]} Bd7 {[%emt 0:01:30]} 12. Bb2 {[%emt 0:01:30]} Bc6 {[%emt 0:00:00]} 13. e4 {[%emt 0:02:30]} a6 {[%emt 0:01:00]} 14. Rac1 {[%emt 0:02:30]} Rac8 {[%emt 0:05:30]} 15. Rfe1 {[%emt 0:04:30]} Rfe8 {[%emt 0:03:30]} 16. Bh3 {[%emt 0:10:30]} Bd7 {[%emt 0:04:30]} 17. Nd5 {[%emt 0:01:30]} Qd8 {[%emt 0:11:30]} 18. Nxf6+ {[%emt 0:06:30]} Bxf6 {[%emt 0:00:30]} 19. Bxf6 {[%emt 0:02:30]} Bxh3 {[%emt 0:02:30]} 20. Bc3 {[%emt 0:01:30]} Qd7 {[%emt 0:01:30]} 21. f3 {[%emt 0:03:30]} Be6 {[%emt 0:03:30]} 22. g4 {[%emt 0:04:30]} b5 {[%emt 0:08:30]} 23. Rcd1 {[%emt 0:11:30]} Qa7+ {[%emt 0:06:30]} 24. Bd4 {[%emt 0:01:30]} Qb7 {[%emt 0:00:30]} 25. Qh6 {[%emt 0:03:30]} f6 {[%emt 0:00:30]} 26. g5 {[%emt 0:02:30]} Rf8 {[%emt 0:03:30]} 27. f4 {[%emt 0:05:30]} Bg4 {[%emt 0:03:30]} 28. gxf6 {[%emt 0:06:16]} exf6 {[%emt 0:00:30]} 29. Rd3 {[%emt 0:00:36]} Rce8 {[%emt 0:14:30]} 30. Rde3 {[%emt 0:01:00]} bxc4 {[%emt 0:00:30]} 31. f5 {[%emt 0:03:18]} Bh5 {[%emt 0:05:30]} 32. Kf2 {[%emt 0:09:42]} cxb3 {[%emt 0:09:58]} 33. Rg1 {[%emt 0:00:12]} b2 {[%emt 0:05:50]} 34. Qxh5 {[%emt 0:02:39]} b1=Q {[%emt 0:00:28]} 35. Rxb1 {[%emt 0:00:22]} Qxb1 {[%emt 0:01:30]} 36. fxg6 {[%emt 0:00:01]} Qc2+ {[%emt 0:01:22]} 37. Re2 {[%emt 0:01:31]} Qc7 {[%emt 0:00:06]} 38. Kf3 {[%emt 0:00:49]} Re7 {[%emt 0:02:42]} 39. Rg2 {[%emt 0:01:10]} hxg6 {[%emt 0:02:05]} 40. Rxg6+ {[%emt 0:00:41]} Rg7 {[%emt 0:00:02]} 41. Rh6 {[%emt 0:00:17]} Rh7 {[%emt 0:00:51]} 42. Qg4+ {[%emt 0:00:22]} Kh8 {[%emt 0:00:00]} 43. Rxf6 {[%emt 0:00:32]} Rxf6+ {[%emt 0:02:03]} 44. Bxf6+ {[%emt 0:00:33]} Rg7 {[%emt 0:00:30]} 45. Qxg7+ {[%emt 0:00:30]} Qxg7 {[%emt 0:00:30]} 46. Bxg7+ {[%emt 0:00:00]} Kxg7 {[%emt 0:00:00]} 47. Ke3 {[%emt 0:00:00]} 1-0

[Event "2nd Turkish League 2017"]
[Site "Konya"]
[Date "2017.07.20"]
[Round "5"]
[White "Eren, Baran"]
[Black "Duman, Aydin"]
[Result "0-1"]
[ECO "A36"]
[WhiteElo "2143"]
[BlackElo "2056"]
[Annotator "NA"]
[PlyCount "158"]
[EventType "team-tourn"]
[EventCountry "TUR"]
[SourceTitle "playchess.com"]
[Source "ChessBase"]
[SourceQuality "1"]
[TimeControl "5400+30"]

1. c4 {[%emt 0:00:30]} g6 {[%emt 0:01:00]} 2. Nc3 {[%emt 0:00:30]} Bg7 {[%emt 0:00:30]} 3. g3 {[%emt 0:00:00]} c5 {[%emt 0:00:30]} 4. Bg2 {[%emt 0:00:00]} Nc6 {[%emt 0:00:30]} 5. a3 {[%emt 0:00:00]} a5 {[%emt 0:00:00]} 6. Nf3 {[%emt 0:02:00]} d6 {[%emt 0:00:00]} 7. O-O {[%emt 0:02:30]} e5 {[%emt 0:00:00]} 8. Ne1 {[%emt 0:04:30]} Nge7 {[%emt 0:00:00]} 9. Nc2 {[%emt 0:00:30]} Rb8 {[%emt 0:07:30]} 10. Ne3 {[%emt 0:02:30]} O-O {[%emt 0:01:30]} 11. Ned5 {[%emt 0:00:30]} Nxd5 {[%emt 0:02:30]} 12. Nxd5 {[%emt 0:00:30]} Bd7 {[%emt 0:00:30]} 13. a4 {[%emt 0:07:30]} Ne7 {[%emt 0:03:30]} 14. e3 {[%emt 0:06:30]} Nxd5 {[%emt 0:00:30]} 15. Bxd5 {[%emt 0:00:00]} Bc6 {[%emt 0:01:30]} 16. d3 {[%emt 0:13:00]} Bxd5 {[%emt 0:16:30]} 17. cxd5 {[%emt 0:00:30]} f5 {[%emt 0:00:30]} 18. Bd2 {[%emt 0:00:30]} b6 {[%emt 0:06:30]} 19. Bc3 {[%emt 0:10:30]} Qd7 {[%emt 0:00:30]} 20. f4 {[%emt 0:00:30]} Rfe8 {[%emt 0:05:30]} 21. Re1 {[%emt 0:07:30]} e4 {[%emt 0:05:30]} 22. Ra3 {[%emt 0:05:30]} exd3 {[%emt 0:01:30]} 23. Qxd3 {[%emt 0:00:30]} Re4 {[%emt 0:00:30]} 24. g4 {[%emt 0:05:30]} Bxc3 {[%emt 0:02:30]} 25. bxc3 {[%emt 0:01:30]} c4 {[%emt 0:00:30]} 26. Qc2 {[%emt 0:08:30]} Rbe8 {[%emt 0:01:30]} 27. Qf2 {[%emt 0:00:30]} fxg4 {[%emt 0:01:30]} 28. Ra2 {[%emt 0:00:00]} Qf5 {[%emt 0:02:30]} 29. Rd2 {[%emt 0:02:00]} g5 {[%emt 0:12:30]} 30. fxg5 {[%emt 0:00:30]} Qxg5 {[%emt 0:00:30]} 31. Rd4 {[%emt 0:01:00]} Rxd4 {[%emt 0:06:30]} 32. exd4 {[%emt 0:02:14]} Rf8 {[%emt 0:01:30]} 33. Qe2 {[%emt 0:00:40]} Qxd5 {[%emt 0:00:30]} 34. Qxg4+ {[%emt 0:02:20]} Kh8 {[%emt 0:00:30]} 35. Qe4 {[%emt 0:00:00]} Qxe4 {[%emt 0:05:24]} 36. Rxe4 {[%emt 0:00:00]} Rf3 {[%emt 0:00:02]} 37. Re6 {[%emt 0:00:31]} Rxc3 {[%emt 0:00:30]} 38. Rxd6 {[%emt 0:00:00]} Rd3 {[%emt 0:01:40]} 39. Rxb6 {[%emt 0:00:04]} Rxd4 {[%emt 0:00:00]} 40. Rc6 {[%emt 0:00:48]} Kg7 {[%emt 0:00:50]} 41. Kf2 {[%emt 0:01:22]} c3 {[%emt 0:00:30]} 42. Rxc3 {[%emt 0:00:00]} Rxa4 {[%emt 0:00:00]} 43. Rc6 {[%emt 0:01:57]} Rf4+ {[%emt 0:00:32]} 44. Kg3 {[%emt 0:04:28]} Rf6 {[%emt 0:00:34]} 45. Rc7+ {[%emt 0:00:30]} Rf7 {[%emt 0:00:00]} 46. Rc4 {[%emt 0:00:12]} Ra7 {[%emt 0:00:22]} 47. Ra4 {[%emt 0:00:00]} Kf6 {[%emt 0:00:41]} 48. Kf4 {[%emt 0:00:39]} Ke6 {[%emt 0:00:30]} 49. h4 {[%emt 0:00:20]} Kd5 {[%emt 0:04:54]} 50. Kg5 {[%emt 0:00:51]} Kc5 {[%emt 0:00:33]} 51. Kh6 {[%emt 0:00:54]} Kb5 {[%emt 0:00:07]} 52. Ra1 {[%emt 0:00:00]} a4 {[%emt 0:00:35]} 53. h5 {[%emt 0:00:06]} Kb4 {[%emt 0:00:00]} 54. Rg1 {[%emt 0:00:29]} a3 {[%emt 0:00:15]} 55. Rg4+ {[%emt 0:01:17]} Kc5 {[%emt 0:00:52]} 56. Rg2 {[%emt 0:00:52]} Kd5 {[%emt 0:00:40]} 57. Rd2+ {[%emt 0:04:58]} Ke4 {[%emt 0:02:31]} 58. Re2+ {[%emt 0:02:10]} Kf4 {[%emt 0:01:10]} 59. Ra2 {[%emt 0:01:02]} Kg3 {[%emt 0:00:46]} 60. Ra1 {[%emt 0:00:14]} a2 {[%emt 0:01:08]} 61. Rg1+ {[%emt 0:00:08]} Kf4 {[%emt 0:00:20]} 62. Rf1+ {[%emt 0:00:14]} Ke5 {[%emt 0:02:11]} 63. Re1+ {[%emt 0:00:04]} Kf6 {[%emt 0:01:00]} 64. Rf1+ {[%emt 0:01:52]} Ke6 {[%emt 0:00:30]} 65. Re1+ {[%emt 0:00:30]} Kf7 {[%emt 0:00:01]} 66. Rf1+ {[%emt 0:00:11]} Kg8 {[%emt 0:00:15]} 67. Rg1+ {[%emt 0:01:30]} Kh8 {[%emt 0:00:30]} 68. Ra1 {[%emt 0:00:00]} Ra6+ {[%emt 0:00:00]} 69. Kg5 {[%emt 0:00:00]} h6+ {[%emt 0:01:09]} 70. Kf5 {[%emt 0:01:51]} Kg7 {[%emt 0:00:30]} 71. Ke5 {[%emt 0:00:00]} Kf7 {[%emt 0:00:00]} 72. Kd5 {[%emt 0:00:32]} Kf6 {[%emt 0:00:43]} 73. Ke4 {[%emt 0:00:26]} Kg5 {[%emt 0:00:04]} 74. Ke5 {[%emt 0:00:20]} Kxh5 {[%emt 0:00:30]} 75. Kf5 {[%emt 0:00:01]} Ra5+ {[%emt 0:00:10]} 76. Kf4 {[%emt 0:00:47]} Kg6 {[%emt 0:00:13]} 77. Rg1+ {[%emt 0:00:55]} Kf6 {[%emt 0:00:30]} 78. Ra1 {[%emt 0:00:30]} Ra4+ {[%emt 0:00:00]} 79. Kg3 {[%emt 0:00:00]} Ke5 {[%emt 0:01:04]} 0-1

[Event "2nd Turkish League 2017"]
[Site "Konya"]
[Date "2017.07.20"]
[Round "5"]
[White "Bayrak, Asli"]
[Black "Keskin, Suara"]
[Result "1-0"]
[ECO "E90"]
[WhiteElo "2056"]
[BlackElo "1716"]
[Annotator "NA"]
[PlyCount "63"]
[EventType "team-tourn"]
[EventCountry "TUR"]
[SourceTitle "playchess.com"]
[Source "ChessBase"]
[SourceQuality "1"]
[TimeControl "5400+30"]

1. e4 {[%emt 0:00:30]} d6 {[%emt 0:01:00]} 2. c4 {[%emt 0:02:30]} Nf6 {[%emt 0:01:30]} 3. Nc3 {[%emt 0:00:30]} g6 {[%emt 0:00:30]} 4. d4 {[%emt 0:00:30]} Bg7 {[%emt 0:00:00]} 5. Nf3 {[%emt 0:00:30]} O-O {[%emt 0:00:00]} 6. h3 {[%emt 0:00:30]} c6 {[%emt 0:01:30]} 7. Be3 {[%emt 0:01:30]} Qc7 {[%emt 0:08:30]} 8. Be2 {[%emt 0:03:30] E90: King's Indian: Classical: Early deviations and 6 h3} e5 {[%emt 0:01:30]} 9. d5 {[%emt 0:01:30]} Na6 {[%emt 0:01:30]} 10. Qc2 $146 {[%emt 0:07:30]} ({Predecessor:} 10. O-O Nc5 11. Nd2 b6 12. Rc1 Qe7 13. b4 Na6 {1-0 (13) Grunberg,M (2400)-David,V (2192) Bucharest 2001}) 10... Ne8 {[%emt 0:10:30]} 11. g4 {[%emt 0:08:30]} f5 {[%emt 0:19:30]} 12. gxf5 {[%emt 0:07:30]} gxf5 {[%emt 0:00:30]} 13. exf5 {[%emt 0:01:30]} Bxf5 {[%emt 0:00:30]} 14. Qd2 {[%emt 0:00:00]} Nb4 {[%emt 0:01:30]} 15. Rc1 {[%emt 0:00:00]} Qf7 {[%emt 0:15:30]} 16. Ng5 {[%emt 0:17:30]} Qg6 {[%emt 0:04:30]} 17. h4 {[%emt 0:00:00]} Nc2+ {[%emt 0:03:30]} 18. Rxc2 {[%emt 0:00:00]} Bxc2 {[%emt 0:00:00]} 19. h5 {[%emt 0:03:30]} Qf5 {[%emt 0:02:00]} 20. h6 $18 {[%emt 0:10:30]} Bf6 {[%emt 0:07:35]} 21. Ne6 {[%emt 0:01:30]} Rf7 {[%emt 0:01:09]} 22. Bh5 {[%emt 0:08:30]} Re7 {[%emt 0:00:24]} 23. Rg1+ {[%emt 0:04:52]} Kh8 {[%emt 0:00:18]} 24. Ng5 {[%emt 0:02:05]} Bxg5 {[%emt 0:06:25]} 25. Bxg5 {[%emt 0:00:12]} Rc7 {[%emt 0:00:47]} 26. Bxe8 {[%emt 0:08:16]} Rxe8 {[%emt 0:00:28]} 27. Qxc2 {[%emt 0:00:20]} Qxc2 {[%emt 0:03:03]} 28. Bf6+ {[%emt 0:00:03]} Rg7 {[%emt 0:00:30]} 29. Rxg7 {[%emt 0:00:04]} Qc1+ {[%emt 0:00:30]} 30. Nd1 {[%emt 0:00:25]} Qf4 {[%emt 0:02:36]} 31. Rg6+ {[%emt 0:00:00]} Qxf6 {[%emt 0:00:01]} 32. Rxf6 {[%emt 0:00:14]} 1-0